lending/lending_fUSD_20251111
["ID","MTS","AMOUNT","RATE_DAILY","PERIOD"]
[393604038,1762847439964,-7519.2397553,0.00032422,2]
[393604039,1762847439974,-178.016759,0.00032429,3]
[393604040,1762847439983,-234.246988,0.00032429,3]
[393604041,1762847439992,-172.347805,0.00032429,3]
[393604042,1762847440002,-300.0,0.00032438,2]
[393604043,1762847440012,-300.0,0.00032447,2]
[393604044,1762847440022,-300.0,0.00032467,2]
[393604045,1762847440031,-300.0,0.00032479,2]
[393604046,1762847440041,-300.0,0.00032516,2]
[393604047,1762847440051,-219.78055144,0.00032531,2]
[393604048,1762847440060,-272.288,0.00032543,32]
[393604049,1762847440070,-2045.102,0.00032543,32]
[393604050,1762847440079,-167.85,0.00032543,2]
[393604051,1762847440089,-300.0,0.00032581,2]
[393604052,1762847440100,-300.0,0.0003262,2]
[393604053,1762847440110,-151.0,0.00032664,14]
[393604054,1762847440120,-1000.0,0.00032667,2]
[393604055,1762847440129,-999.0,0.00032667,3]
[393604056,1762847440139,-168.41,0.00032671,2]
[393604057,1762847440148,-300.0,0.00032672,2]
[393604058,1762847440158,-300.0,0.00032698,2]
[393604059,1762847440169,-1000.0,0.000327,7]
[393604060,1762847440179,-300.0,0.00032772,2]
[393604061,1762847440189,-300.0,0.00032784,2]
[393604062,1762847440199,-300.0,0.000328,2]
[393604063,1762847440208,-300.0,0.00032867,2]
[393604064,1762847440219,-300.0,0.00032882,2]
[393604065,1762847440232,-300.0,0.00032927,2]
[393604066,1762847440242,-11083.9954841,0.0003299,3]
[393604067,1762847440252,-500.0,0.00032999,2]
[393604068,1762847440263,-300.0,0.00032999,2]
[393604069,1762847440272,-13500.0,0.00033,2]
[393604070,1762847440282,-966.49601571,0.00033,2]
[393604071,1762847440291,-168.0,0.00033,14]
[393604072,1762847440301,-300.0,0.00033,2]
[393604073,1762847440312,-262.58006651,0.00033023,15]
[393604074,1762847440321,-763.97,0.00033038,2]
[393604075,1762847440331,-168.0,0.0003304,2]
[393604076,1762847440340,-151.0,0.00033089,7]
[393604077,1762847440349,-1242.0,0.00033089,7]
[393604078,1762847440359,-151.0,0.00033089,7]
[393604079,1762847440368,-1242.0,0.00033089,7]
[393604080,1762847440378,-151.0,0.00033089,7]
[393604081,1762847440388,-152.0,0.00033089,7]
[393604082,1762847440398,-1242.0,0.00033089,7]
[393604084,1762847440408,-152.0,0.00033089,7]
[393604085,1762847440418,-152.0,0.00033089,7]
[393604086,1762847440427,-152.0,0.00033089,7]
[393604087,1762847440437,-152.0,0.00033089,7]
[393604088,1762847440447,-152.0,0.00033089,7]
[393604090,1762847440456,-152.0,0.00033089,7]
[393604091,1762847440466,-152.0,0.00033089,7]
[393604092,1762847440476,-300.0,0.00033101,2]
[393604093,1762847440485,-1082.97767073,0.00033113,2]
[393604094,1762847440495,-11083.9954841,0.00033113,3]
[393604095,1762847440504,-300.0,0.00033118,2]
[393604096,1762847440514,-177.09,0.00033123,2]
[393604097,1762847440524,-169.21,0.00033123,2]
[393604098,1762847440533,-1206.87,0.00033123,2]
[393604099,1762847440721,-150.0,0.00033123,2]
[393604100,1762847440731,-169.21,0.00033123,2]
[393604101,1762847440740,-1206.87,0.00033123,2]
[393604102,1762847440750,-177.09,0.00033123,2]
[393604103,1762847440759,-227.54,0.00033123,2]
[393604104,1762847440769,-169.21,0.00033123,2]
[393604105,1762847440778,-177.09,0.00033123,2]
[393604106,1762847440786,-317.18,0.00033123,2]
[393604107,1762847440796,-181.57,0.00033123,2]
[393604108,1762847440806,-200.0,0.00033131,5]
[393604109,1762847440816,-502.32902604,0.00033131,5]
[393604110,1762847440826,-500.0,0.00033131,5]
[393604111,1762847440836,-500.92904983,0.00033131,5]
[393604112,1762847440845,-500.0,0.00033131,5]
[393604113,1762847440855,-502.29417655,0.00033131,5]
[393604114,1762847440865,-168.0,0.00033132,2]
[393604115,1762847440875,-505.14650434,0.00033144,5]
[393604116,1762847440885,-501.80740999,0.00033144,5]
[393604117,1762847440895,-500.0,0.00033157,5]
[393604118,1762847440904,-501.61817707,0.00033157,5]
[393604119,1762847440914,-502.15227908,0.00033157,5]
[393604120,1762847440924,-500.0,0.00033157,5]
[393604121,1762847440934,-377.32217667,0.00033157,5]
[393604122,1762847440944,-502.39810073,0.00033157,5]
[393604123,1762847440953,-300.0,0.00033165,2]
[393604124,1762847440963,-334.75,0.00033165,2]
[393604125,1762847440972,-500.0,0.00033173,5]
[393604126,1762847440982,-502.81495526,0.00033173,5]
[393604127,1762847440992,-150.12918919,0.00033174,5]
[393604128,1762847441001,-500.67483297,0.00033174,5]
[393604129,1762847441011,-502.40345278,0.00033174,5]
[393604131,1762847441022,-300.0,0.00033175,2]
[393604132,1762847441032,-168.0,0.00033175,2]
[393604133,1762847441041,-467.94625902,0.00033186,5]
[393604134,1762847441050,-300.0,0.00033201,2]
[393604135,1762847441061,-168.0,0.00033207,7]
[393604136,1762847441071,-300.0,0.00033245,2]
[393604137,1762847441080,-300.0,0.00033267,2]
[393604138,1762847441090,-300.0,0.00033286,2]
[393604139,1762847441099,-150.0,0.00033359,2]
[393604140,1762847441109,-300.0,0.00033449,2]
[393604141,1762847441119,-300.0,0.00033496,2]
[393604142,1762847441130,-150.0,0.00033507,2]
[393604143,1762847441139,-300.0,0.00033528,2]
[393604144,1762847441149,-300.0,0.00033529,2]
[393604145,1762847441158,-168.0,0.00033552,2]
[393604146,1762847441168,-4836.08819564,0.00033553,2]
[393604147,1762847441177,-168.0,0.00033556,2]
[393604148,1762847441186,-300.0,0.00033575,2]
[393604149,1762847441196,-150.0,0.00033576,2]
[393604150,1762847441205,-201.89132602,0.00033581,2]
[393604151,1762847441216,-454.54493618,0.00033581,2]
[393604152,1762847441230,-151.0,0.00033581,2]
[393604153,1762847441239,-300.0,0.00033589,7]
[393604154,1762847441248,-160.0,0.00033589,7]
[393604155,1762847441257,-168.0,0.00033617,2]
[393604156,1762847441267,-300.0,0.00033618,2]
[393604157,1762847441277,-300.0,0.00033647,2]
[393604158,1762847441286,-300.0,0.0003367,2]
[393604159,1762847441297,-503.45791664,0.00033679,5]
[393604160,1762847441307,-300.0,0.00033692,2]
[393604161,1762847441317,-168.0,0.00033697,2]
[393604162,1762847441327,-278.35238343,0.00033705,5]
[393604163,1762847441336,-168.0,0.00033706,2]
[393604164,1762847441346,-300.0,0.00033715,2]
[393604165,1762847441355,-11083.9954841,0.00033752,3]
[393604166,1762847441364,-262.58006646,0.00033752,15]
[393604167,1762847441375,-300.0,0.00033762,2]
[393604168,1762847441385,-300.0,0.00033785,2]
[393604169,1762847441394,-168.0,0.00033786,7]
[393604170,1762847441403,-300.0,0.00033797,2]
[393604171,1762847441413,-400.0,0.00033816,5]
[393604172,1762847441424,-1173.84,0.00033826,2]
[393604173,1762847441438,-1000.0,0.00033834,2]
[393604174,1762847441447,-150.0,0.00033842,2]
[393604175,1762847441457,-11083.9954841,0.00033889,3]
[393604176,1762847441467,-22167.9909682,0.0003389,3]
[393604177,1762847441477,-151.0,0.00033897,14]
[393604178,1762847441487,-1082.97767073,0.00033897,2]
[393604179,1762847441497,-322.6107,0.00033899,14]
[393604180,1762847441506,-334.5472959,0.00033899,14]
[393604181,1762847441515,-346.92554585,0.00033899,14]
[393604182,1762847441525,-359.76179104,0.00033899,14]
[393604183,1762847441535,-373.07297731,0.00033899,14]
[393604184,1762847441544,-386.87667747,0.00033899,14]
[393604185,1762847441553,-401.19111454,0.00033899,14]
[393604186,1762847441562,-500.0,0.00033899,14]
[393604187,1762847441572,-500.0,0.00033899,14]
[393604188,1762847441582,-500.0,0.00033899,14]
[393604189,1762847441591,-500.0,0.00033899,14]
[393604190,1762847441601,-500.0,0.00033899,14]
[393604191,1762847441610,-500.0,0.00033899,14]
[393604192,1762847441619,-500.0,0.00033899,14]
[393604193,1762847441628,-500.0,0.00033899,14]
[393604194,1762847441638,-500.0,0.00033899,14]
[393604195,1762847441647,-500.0,0.00033899,14]
[393604196,1762847441656,-500.0,0.00033899,14]
[393604197,1762847441666,-500.0,0.00033899,14]
[393604198,1762847441676,-591.59799213,0.00033899,14]
[393604199,1762847441686,-574.12855637,0.00033899,14]
[393604200,1762847441694,-595.37131296,0.00033899,14]
[393604201,1762847441703,-151.0,0.00033899,14]
[393604202,1762847441711,-617.40005154,0.00033899,14]
[393604203,1762847441720,-151.0,0.00033899,14]
[393604204,1762847441729,-151.0,0.00033899,14]
[393604205,1762847441737,-151.0,0.00033899,14]
[393604206,1762847441746,-640.24385345,0.00033899,14]
[393604207,1762847441756,-151.0,0.00033899,14]
[393604208,1762847441765,-151.0,0.00033899,14]
[393604209,1762847441774,-663.93287602,0.00033899,14]
[393604210,1762847441784,-151.0,0.00033899,14]
[393604211,1762847441792,-151.0,0.00033899,14]
[393604212,1762847441801,-688.49839244,0.00033899,14]
[393604213,1762847441810,-151.0,0.00033899,14]
[393604214,1762847441820,-151.0,0.00033899,14]
[393604215,1762847441829,-713.97283296,0.00033899,14]
[393604216,1762847441838,-151.0,0.00033899,14]
[393604217,1762847441848,-151.0,0.00033899,14]
[393604218,1762847441859,-151.0,0.00033899,14]
[393604219,1762847441868,-740.38982778,0.00033899,14]
[393604220,1762847441878,-151.0,0.00033899,14]
[393604221,1762847441887,-151.0,0.00033899,14]
[393604222,1762847441897,-151.0,0.00033899,14]
[393604223,1762847441907,-767.7842514,0.00033899,14]
[393604224,1762847441916,-151.0,0.00033899,14]
[393604225,1762847441926,-151.0,0.00033899,14]
[393604226,1762847441935,-796.19226871,0.00033899,14]
[393604227,1762847441945,-151.0,0.00033899,14]
[393604228,1762847441955,-151.0,0.00033899,14]
[393604229,1762847441964,-151.0,0.00033899,14]
[393604230,1762847441974,-825.65138266,0.00033899,14]
[393604231,1762847441983,-151.0,0.00033899,14]
[393604232,1762847441994,-151.0,0.00033899,14]
[393604233,1762847442003,-151.0,0.00033899,14]
[393604234,1762847442012,-151.0,0.00033899,14]
[393604235,1762847442021,-151.0,0.00033899,14]
[393604236,1762847442031,-260.74757872,0.00033899,14]
[393604237,1762847442040,-151.0,0.00033899,14]
[393604238,1762847442050,-151.0,0.00033899,14]
[393604239,1762847442059,-281.04205627,0.00033899,14]
[393604240,1762847442069,-277.35679052,0.00033899,5]
[393604241,1762847442079,-320.72855198,0.00033899,5]
[393604242,1762847442088,-646.51770585,0.00033899,14]
[393604243,1762847442098,-195.60769161,0.00033899,14]
[393604244,1762847442108,-208.71,0.000339,14]
[393604245,1762847442118,-1242.0,0.000339,7]
[393604246,1762847442127,-151.0,0.000339,7]
[393604247,1762847442138,-1242.0,0.000339,7]
[393604248,1762847442148,-151.0,0.000339,7]
[393604249,1762847442157,-615.87690974,0.000339,7]
[393604250,1762847442168,-152.0,0.000339,7]
[393604251,1762847442178,-1242.0,0.000339,7]
[393604252,1762847442187,-151.0,0.000339,7]
[393604253,1762847442197,-152.0,0.000339,7]
[393604254,1762847442207,-1242.0,0.000339,7]
[393604255,1762847442216,-151.0,0.000339,7]
[393604256,1762847442227,-151.16701834,0.000339,7]
[393604257,1762847442238,-1242.0,0.000339,7]
[393604258,1762847442248,-151.0,0.000339,7]
[393604259,1762847442257,-152.0,0.000339,7]
[393604260,1762847442267,-1242.0,0.000339,7]
[393604261,1762847442276,-151.0,0.000339,7]
[393604262,1762847442286,-1242.0,0.000339,7]
[393604263,1762847442296,-151.0,0.000339,7]
[393604264,1762847442308,-1242.0,0.000339,7]
[393604265,1762847442318,-151.0,0.000339,7]
[393604266,1762847442327,-152.0,0.000339,7]
[393604267,1762847442337,-1242.0,0.000339,7]
[393604268,1762847442346,-151.0,0.000339,7]
[393604269,1762847442356,-152.0,0.000339,7]
[393604270,1762847442365,-1242.0,0.000339,7]
[393604271,1762847442375,-152.0,0.000339,7]
[393604272,1762847442385,-151.0,0.000339,7]
[393604273,1762847442395,-152.0,0.000339,7]
[393604274,1762847442405,-151.0,0.000339,7]
[393604275,1762847442415,-1242.0,0.000339,7]
[393604276,1762847442426,-152.0,0.000339,7]
[393604277,1762847442436,-151.0,0.000339,7]
[393604278,1762847442446,-820.28360877,0.000339,7]
[393604279,1762847442455,-152.0,0.000339,7]
[393604280,1762847442465,-151.0,0.000339,7]
[393604281,1762847442475,-152.0,0.000339,7]
[393604282,1762847442484,-250.38392195,0.000339,7]
[393604283,1762847442494,-152.0,0.000339,7]
[393604284,1762847442503,-152.0,0.000339,7]
[393604285,1762847442512,-152.0,0.000339,7]
[393604286,1762847442522,-152.0,0.000339,7]
[393604287,1762847442531,-151.0,0.000339,7]
[393604288,1762847442541,-152.0,0.000339,7]
[393604289,1762847442550,-152.0,0.000339,7]
[393604290,1762847442559,-151.0,0.000339,7]
[393604291,1762847442569,-151.0,0.000339,7]
[393604292,1762847442578,-152.0,0.000339,7]
[393604293,1762847442588,-151.0,0.000339,7]
[393604294,1762847442598,-152.0,0.000339,7]
[393604295,1762847442607,-151.0,0.000339,7]
[393604296,1762847442617,-222.71219546,0.000339,7]
[393604297,1762847442626,-151.0,0.000339,7]
[393604298,1762847442635,-151.0,0.000339,7]
[393604299,1762847442645,-151.0,0.000339,7]
[393604300,1762847442655,-151.0,0.000339,7]
[393604301,1762847442664,-151.0,0.000339,7]
[393604302,1762847442677,-151.0,0.000339,7]
[393604303,1762847442687,-199.3880896,0.000339,7]
[393604304,1762847442696,-151.0,0.000339,7]
[393604305,1762847442706,-1242.0,0.000339,7]
[393604306,1762847442715,-151.0,0.000339,7]
[393604307,1762847442725,-1242.0,0.000339,7]
[393604308,1762847442734,-151.0,0.000339,7]
[393604309,1762847442743,-1242.0,0.000339,7]
[393604310,1762847442753,-152.0,0.000339,7]
[393604311,1762847442762,-151.0,0.000339,7]
[393604312,1762847442771,-1242.0,0.000339,7]
[393604313,1762847442781,-152.0,0.000339,7]
[393604314,1762847442791,-151.0,0.000339,7]
[393604315,1762847442800,-1242.0,0.000339,7]
[393604316,1762847442810,-151.0,0.000339,7]
[393604317,1762847442819,-1242.0,0.000339,7]
[393604318,1762847442828,-151.0,0.000339,7]
[393604319,1762847442838,-1242.0,0.000339,7]
[393604320,1762847442847,-302.54022849,0.000339,7]
[393604321,1762847442857,-151.0,0.000339,7]
[393604322,1762847442866,-1242.0,0.000339,7]
[393604323,1762847442876,-151.0,0.000339,7]
[393604324,1762847442885,-1242.0,0.000339,7]
[393604325,1762847442895,-151.0,0.000339,7]
[393604326,1762847442905,-1242.0,0.000339,7]
[393604327,1762847442915,-151.0,0.000339,7]
[393604328,1762847442926,-1242.0,0.000339,7]
[393604329,1762847442936,-151.0,0.000339,7]
[393604330,1762847442946,-1242.0,0.000339,7]
[393604331,1762847442957,-151.0,0.000339,7]
[393604332,1762847442967,-1242.0,0.000339,7]
[393604333,1762847442978,-151.0,0.000339,7]
[393604334,1762847442989,-1242.0,0.000339,7]
[393604335,1762847443002,-151.0,0.000339,7]
[393604336,1762847443012,-1242.0,0.000339,7]
[393604337,1762847443023,-151.0,0.000339,7]
[393604338,1762847443034,-560.96835463,0.000339,7]
[393604339,1762847443044,-257.89535134,0.000339,7]
[393604340,1762847443054,-1242.0,0.000339,7]
[393604341,1762847443065,-151.0,0.000339,7]
[393604342,1762847443074,-1242.0,0.000339,7]
[393604343,1762847443084,-151.0,0.000339,7]
[393604344,1762847443094,-1242.0,0.000339,7]
[393604345,1762847443104,-151.0,0.000339,7]
[393604346,1762847443114,-150.0,0.00033911,2]
[393604347,1762847443125,-300.0,0.00033965,2]
[393604348,1762847443134,-300.0,0.00033995,2]
[393604349,1762847443144,-877.73283215,0.00034,2]
[393604350,1762847443155,-300.0,0.00034,2]
[393604351,1762847443164,-548.0,0.00034003,7]
[393604352,1762847443176,-300.0,0.00034003,2]
[393604353,1762847443186,-168.0,0.0003406,2]
[393604354,1762847443196,-300.0,0.00034063,2]
[393604356,1762847443206,-168.0,0.0003409,2]
[393604358,1762847443215,-1000.0,0.000341,7]
[393604360,1762847443229,-168.0,0.00034128,2]
[393604363,1762847443239,-300.0,0.00034147,2]
[393604365,1762847443249,-300.0,0.00034148,2]
[393604367,1762847443259,-150.0,0.00034237,2]
[393604369,1762847443270,-166.66,0.00034254,2]
[393604370,1762847443280,-300.0,0.00034262,2]
[393604371,1762847443290,-166.67,0.00034279,2]
[393604372,1762847443300,-163.850523,0.0003428,2]
[393604373,1762847443310,-178.016759,0.0003428,2]
[393604374,1762847443320,-234.246988,0.0003428,2]
[393604375,1762847443329,-172.347805,0.0003428,2]
[393604376,1762847443339,-548.0,0.00034295,2]
[393604377,1762847443349,-322.29297541,0.00034329,2]
[393604378,1762847443360,-300.0,0.00034356,2]
[393604379,1762847443369,-150.0,0.00034357,2]
[393604380,1762847443379,-263.14540054,0.00034358,2]
[393604381,1762847443389,-547.0,0.00034395,2]
[393604382,1762847443399,-300.0,0.00034395,2]
[393604383,1762847443408,-152.0,0.00034411,3]
[393604384,1762847443419,-300.0,0.00034479,2]
[393604385,1762847443429,-262.58006646,0.00034482,15]
[393604386,1762847443439,-500.0,0.0003449,7]
[393604387,1762847443448,-405.38402433,0.00034501,5]
[393604388,1762847443458,-500.0,0.00034515,7]
[393604389,1762847443467,-500.0,0.0003452,7]
[393604390,1762847443477,-169.0,0.00034521,30]
[393604391,1762847443487,-500.0,0.00034524,7]
[393604392,1762847443496,-500.0,0.00034524,7]
[393604393,1762847443505,-500.0,0.0003453,7]
[393604394,1762847443515,-226.58,0.00034537,2]
[393604395,1762847443524,-11083.9954841,0.00034537,3]
[393604396,1762847443534,-700.0,0.00034541,7]
[393604397,1762847443543,-500.0,0.00034543,7]
[393604398,1762847443553,-500.0,0.00034547,7]
[393604399,1762847443563,-300.0,0.0003456,2]
[393604400,1762847443573,-700.0,0.00034562,7]
[393604401,1762847443583,-700.0,0.00034568,7]
[393604402,1762847443592,-152.0,0.00034581,7]
[393604403,1762847443602,-152.0,0.00034581,7]
[393604404,1762847443611,-500.0,0.00034589,7]
[393604405,1762847443622,-300.0,0.00034622,2]
[393604406,1762847443631,-500.0,0.00034628,7]
[393604407,1762847443641,-150.0,0.00034632,2]
[393604408,1762847443651,-1000.0,0.00034639,2]
[393604409,1762847443660,-700.0,0.00034641,7]
[393604410,1762847443672,-300.0,0.00034648,2]
[393604411,1762847443682,-300.0,0.0003465,2]
[393604412,1762847443692,-700.0,0.00034664,7]
[393604413,1762847443702,-500.0,0.0003467,7]
[393604414,1762847443712,-700.0,0.00034677,7]
[393604415,1762847443722,-1082.97767073,0.00034682,2]
[393604416,1762847443732,-500.0,0.00034694,7]
[393604417,1762847443742,-700.0,0.0003471,7]
[393604418,1762847443752,-700.0,0.00034715,7]
[393604419,1762847443762,-150.0,0.00034719,2]
[393604420,1762847443772,-700.0,0.00034724,7]
[393604421,1762847443781,-178.016759,0.00034732,3]
[393604422,1762847443791,-234.246988,0.00034732,3]
[393604423,1762847443801,-172.347805,0.00034732,3]
[393604424,1762847443810,-500.0,0.0003474,7]
[393604425,1762847443820,-300.0,0.00034744,2]
[393604426,1762847443831,-300.0,0.00034751,2]
[393604427,1762847443841,-4836.08819564,0.00034757,2]
[393604428,1762847443850,-300.0,0.00034761,2]
[393604429,1762847443860,-300.0,0.00034784,2]
[393604430,1762847443870,-700.0,0.00034788,7]
[393604431,1762847443880,-150.0,0.00034791,2]
[393604432,1762847443890,-300.0,0.00034805,2]
[393604433,1762847443900,-300.0,0.00034814,2]
[393604434,1762847443910,-700.0,0.00034818,7]
[393604435,1762847443921,-150.0,0.00034819,2]
[393604436,1762847443932,-300.0,0.00034831,2]
[393604437,1762847443941,-200.0,0.00034832,10]
[393604438,1762847443951,-200.0,0.00034833,10]
[393604439,1762847443960,-200.0,0.00034833,10]
[393604440,1762847443969,-547.0,0.00034834,2]
[393604441,1762847443979,-12298.329016,0.00034835,3]
[393604442,1762847443989,-11083.9954841,0.00034846,3]
[393604443,1762847443998,-547.0,0.00034856,7]
[393604444,1762847444007,-700.0,0.00034858,7]
[393604445,1762847444017,-700.0,0.00034865,7]
[393604446,1762847444027,-500.0,0.00034872,7]
[393604447,1762847444036,-300.0,0.00034879,2]
[393604448,1762847444046,-500.0,0.00034881,7]
[393604449,1762847444055,-300.0,0.00034889,2]
[393604450,1762847444064,-500.0,0.00034891,7]
[393604451,1762847444073,-700.0,0.00034898,7]
[393604452,1762847444083,-500.0,0.00034916,2]
[393604453,1762847444092,-168.0,0.00034921,2]
[393604454,1762847444102,-574.0,0.00034938,2]
[393604455,1762847444111,-3426.0,0.00034938,2]
[393604456,1762847444120,-1317.0,0.00034938,2]
[393604457,1762847444129,-820.0,0.00034938,2]
[393604458,1762847444138,-1597.0,0.00034938,2]
[393604459,1762847444147,-2143.0,0.00034938,2]
[393604460,1762847444157,-700.0,0.00034969,7]
[393604461,1762847444168,-162.30554255,0.00034973,5]
[393604462,1762847444178,-12298.329016,0.0003498,3]
[393604463,1762847444187,-700.0,0.00034989,7]
[393604464,1762847444197,-11083.9954841,0.0003499,3]
[393604465,1762847444206,-151.0,0.00035,7]
[393604466,1762847444215,-500.0,0.00035002,30]
[393604467,1762847444225,-300.0,0.00035006,2]
[393604468,1762847444239,-700.0,0.00035007,30]
[393604469,1762847444249,-300.0,0.00035052,2]
[393604470,1762847444259,-300.0,0.00035053,2]
[393604471,1762847444268,-500.0,0.00035078,30]
[393604472,1762847444279,-500.0,0.00035078,30]
[393604473,1762847444288,-500.0,0.00035098,30]
[393604474,1762847444298,-300.0,0.00035118,2]
[393604475,1762847444309,-500.0,0.00035164,30]
[393604476,1762847444318,-700.0,0.00035168,30]
[393604477,1762847444328,-700.0,0.00035177,30]
[393604478,1762847444337,-12298.329016,0.00035178,3]
[393604479,1762847444347,-547.0,0.00035188,2]
[393604480,1762847444357,-300.0,0.00035193,2]
[393604481,1762847444366,-150.0,0.000352,2]
[393604482,1762847444375,-150.0,0.00035208,2]
[393604483,1762847444384,-262.58006646,0.00035211,15]
[393604484,1762847444393,-700.0,0.00035225,30]
[393604485,1762847444403,-459.02,0.00035231,30]
[393604486,1762847444412,-11083.9954841,0.00035234,3]
[393604487,1762847444423,-500.0,0.00035234,30]
[393604488,1762847444433,-500.0,0.00035248,30]
[393604489,1762847444442,-153.0,0.00035286,2]
[393604490,1762847444451,-153.0,0.00035286,2]
[393604491,1762847444460,-153.0,0.00035286,2]
[393604492,1762847444470,-153.0,0.00035286,2]
[393604493,1762847444479,-153.0,0.00035286,2]
[393604494,1762847444488,-153.0,0.00035286,2]
[393604495,1762847444497,-153.0,0.00035286,2]
[393604496,1762847444507,-153.0,0.00035286,2]
[393604497,1762847444516,-153.0,0.00035286,2]
[393604498,1762847444525,-153.0,0.00035286,2]
[393604499,1762847444535,-153.0,0.00035286,2]
[393604500,1762847444544,-153.0,0.00035286,2]
[393604501,1762847444553,-153.0,0.00035286,2]
[393604502,1762847444705,-153.0,0.00035286,2]
[393604503,1762847444716,-153.0,0.00035286,2]
[393604504,1762847444725,-153.0,0.00035286,2]
[393604505,1762847444735,-158.72,0.00035288,2]
[393604506,1762847444745,-500.0,0.0003529,30]
[393604507,1762847444754,-700.0,0.00035326,30]
[393604508,1762847444764,-500.0,0.00035327,30]
[393604509,1762847444774,-500.0,0.00035347,30]
[393604510,1762847444784,-12298.329016,0.00035362,3]
[393604511,1762847444794,-11083.9954841,0.00035371,3]
[393604512,1762847444804,-500.0,0.00035391,30]
[393604513,1762847444813,-160.90585572,0.00035406,5]
[393604514,1762847444824,-500.0,0.0003541,30]
[393604515,1762847444835,-500.0,0.00035418,30]
[393604516,1762847444844,-500.0,0.00035419,30]
[393604517,1762847444854,-500.0,0.00035451,30]
[393604518,1762847444864,-168.0,0.00035463,2]
[393604519,1762847444873,-1082.97767073,0.00035466,2]
[393604520,1762847444883,-700.0,0.00035467,30]
[393604521,1762847444893,-168.0,0.0003547,2]
[393604522,1762847444903,-700.0,0.00035473,30]
[393604523,1762847444912,-835.59,0.00035479,30]
[393604524,1762847444923,-500.0,0.00035482,30]
[393604525,1762847444933,-12298.329016,0.00035488,3]
[393604526,1762847444942,-11083.9954841,0.00035498,3]
[393604527,1762847444952,-447.0,0.000355,2]
[393604528,1762847444961,-610.14834902,0.00035508,30]
[393604529,1762847444971,-500.0,0.00035536,30]
[393604530,1762847444981,-700.0,0.00035567,30]
[393604531,1762847444991,-151.58,0.00035577,2]
[393604532,1762847445000,-619.51105167,0.00035583,30]
[393604533,1762847445010,-500.0,0.00035611,30]
[393604534,1762847445020,-500.0,0.00035614,30]
[393604535,1762847445030,-700.0,0.00035621,30]
[393604536,1762847445039,-700.0,0.00035631,30]
[393604537,1762847445048,-700.0,0.00035654,30]
[393604538,1762847445058,-500.0,0.0003566,30]
[393604539,1762847445067,-503.11387167,0.00035662,30]
[393604540,1762847445077,-500.0,0.00035678,30]
[393604541,1762847445087,-180.66875269,0.00035684,15]
[393604542,1762847445097,-460.09032758,0.00035691,30]
[393604543,1762847445106,-500.0,0.00035713,30]
[393604544,1762847445116,-500.0,0.00035735,30]
[393604545,1762847445126,-12298.329016,0.00035755,3]
[393604546,1762847445136,-500.0,0.00035758,30]
[393604547,1762847445145,-11083.9954841,0.00035765,3]
[393604548,1762847445155,-500.0,0.00035775,30]